fUSD/lending_fUSD_20240129
["ID","MTS","AMOUNT","RATE_DAILY","PERIOD"]
[312961735,1706545840629,-2019.85017474,0.0003,2]
[312961736,1706545840638,-2019.85017474,0.0003,2]
[312961737,1706545840648,-2019.85017474,0.0003,2]
[312961738,1706545840657,-2019.85017474,0.0003,2]
[312961739,1706545840666,-2019.85017474,0.0003,2]
[312961740,1706545840675,-2019.85017474,0.0003,2]
[312961741,1706545840684,-540.56078232,0.0003,2]
[312961742,1706545840696,-1479.28939242,0.0003,2]
[312961743,1706545840706,-386.97315878,0.0003,2]
[312961744,1706545840718,-1632.87701596,0.0003,2]
[312961745,1706545840727,-825.91316777,0.0003,2]
[312961747,1706545840746,-858.66,0.0003,2]
[312961748,1706545840758,-335.27700697,0.0003,2]
[312961749,1706545840767,-3000.0,0.0003001,2]
[312961750,1706545840776,-952.42299302,0.0003002,2]
[312961751,1706545840813,-500.0,0.00028753,2]
[312961752,1706545840823,-506.92835566,0.0003002,2]
[312961753,1706545840834,-1004.5550219,0.0003002,2]
[312961754,1706545840857,-536.09362942,0.0003002,2]
[312961755,1706545840867,-3608.90652,0.0003003,2]
[312961756,1706545840876,-960.0,0.00030036,2]
[312961757,1706545840885,-157.35,0.00030137,2]
[312961758,1706545840895,-180.325052,0.000302,3]
[312961759,1706545840904,-577.57,0.00030281,2]
[312961760,1706545840913,-150.25,0.00030281,2]
[312961761,1706545840922,-165.82,0.00030281,2]
[312961762,1706545840932,-1103.73,0.00030345,2]
[312961763,1706545840941,-1000.0,0.00030443,7]
[312961764,1706545840950,-614.7361318,0.00030443,3]
[312961765,1706545840960,-2068.16789253,0.00030443,6]
[312961766,1706545840970,-749.78346389,0.00030443,6]
[312961767,1706545840980,-225.12290712,0.00030443,5]
[312961768,1706545840989,-3762.83907977,0.00030443,6]
[312961769,1706545840998,-417.92284569,0.00030443,5]
[312961770,1706545841007,-242.23298132,0.00030443,6]
[312961771,1706545841016,-500.0,0.00030443,6]
[312961772,1706545841025,-1000.0,0.00030443,7]
[312961773,1706545841034,-711.23321094,0.00030443,6]
[312961774,1706545841043,-1000.0,0.00030443,7]
[312961775,1706545841052,-452.03431141,0.00030443,6]
[312961776,1706545841061,-3200.48169443,0.00030443,6]
[312961777,1706545841070,-1000.0,0.00030443,7]
[312961778,1706545841080,-1282.75152118,0.00030443,6]
[312961779,1706545841094,-26.53644472,0.00030443,6]
[312961780,1706545841103,-589.85699455,0.00030443,6]
[312961781,1706545841115,-561.9462676,0.00030443,6]
[312961782,1706545841124,-151.80326214,0.00030443,3]
[312961783,1706545841133,-383.25047026,0.00030443,6]
[312961784,1706545841145,-2014.09825634,0.00030443,6]
[312961785,1706545841153,-338.69475241,0.00030443,3]
[312961786,1706545841163,-1331.51927652,0.00030443,6]
[312961787,1706545841172,-46.44918454,0.000305,2]
[312961788,1706545841192,-855.55081546,0.000305,2]
[312961789,1706545841201,-577.57,0.00030569,2]
[312961790,1706545841212,-150.25,0.00030569,2]
[312961791,1706545841221,-165.82,0.00030569,2]
[312961792,1706545841230,-614.8353495,0.00030743,2]
[312961793,1706545841242,-1290.8346505,0.00030743,2]
[312961794,1706545841252,-166.84,0.00030763,2]
[312961795,1706545841262,-649.28635251,0.00030798,4]
[312961796,1706545841273,-470.17891699,0.00030798,4]
[312961797,1706545841284,-2021.11738112,0.00030798,4]
[312961798,1706545841294,-309.999999,0.00030798,4]
[312961799,1706545841303,-957.33867045,0.00030799,4]
[312961800,1706545841316,-155.0,0.000308,2]
[312961801,1706545841325,-3000.0,0.000308,2]
[312961802,1706545841334,-1297.06292967,0.00030811,5]
[312961803,1706545841343,-157.35,0.00030822,2]
[312961804,1706545841353,-577.57,0.00030858,2]
[312961805,1706545841362,-150.25,0.00030858,2]
[312961806,1706545841371,-165.82,0.00030858,2]
[312961807,1706545841380,-198.58536634,0.000309,2]
[312961808,1706545841391,-500.0,0.00030999,2]
[312961809,1706545841400,-500.0,0.00030999,2]
[312961810,1706545841409,-500.0,0.00030999,2]
[312961811,1706545841418,-500.0,0.00030999,2]
[312961812,1706545841428,-500.0,0.00030999,2]
[312961813,1706545841437,-500.0,0.00030999,2]
[312961814,1706545841447,-500.0,0.00030999,2]
[312961815,1706545841457,-500.0,0.00030999,2]
[312961816,1706545841466,-500.0,0.00030999,2]
[312961817,1706545841476,-500.0,0.00030999,2]
[312961819,1706545841485,-500.0,0.00030999,2]
[312961820,1706545841494,-500.0,0.00030999,2]
[312961821,1706545841503,-500.0,0.00030999,2]
[312961822,1706545841512,-500.0,0.00030999,2]
[312961823,1706545841522,-500.0,0.00030999,2]
[312961824,1706545841532,-500.0,0.00030999,2]
[312961825,1706545841542,-500.0,0.00030999,2]
[312961826,1706545841551,-500.0,0.00030999,2]
[312961827,1706545841563,-500.0,0.00030999,2]
[312961828,1706545841572,-500.0,0.00030999,2]
[312961829,1706545841582,-500.0,0.00030999,2]
[312961830,1706545841593,-500.0,0.00030999,2]
[312961831,1706545841602,-500.0,0.00030999,2]
[312961832,1706545841613,-500.0,0.00030999,2]
[312961833,1706545841622,-500.0,0.00030999,2]
[312961834,1706545841632,-500.0,0.00030999,2]
[312961835,1706545841641,-500.0,0.00030999,2]
[312961836,1706545841650,-500.0,0.00030999,2]
[312961837,1706545841659,-500.0,0.00030999,2]
[312961838,1706545841669,-500.0,0.00030999,2]
[312961839,1706545841677,-500.0,0.00030999,2]
[312961840,1706545841686,-500.0,0.00030999,2]
[312961841,1706545841695,-500.0,0.00030999,2]
[312961842,1706545841705,-500.0,0.00030999,2]
[312961843,1706545841714,-500.0,0.00030999,2]
[312961844,1706545841723,-500.0,0.00030999,2]
[312961845,1706545841732,-500.0,0.00030999,2]
[312961846,1706545841741,-500.0,0.00030999,2]
[312961847,1706545841750,-500.0,0.00030999,2]
[312961848,1706545841759,-500.0,0.00030999,2]
[312961849,1706545841768,-500.0,0.00030999,2]
[312961850,1706545841777,-500.0,0.00030999,2]
[312961851,1706545841787,-500.0,0.00030999,2]
[312961852,1706545841796,-500.0,0.00030999,2]
[312961853,1706545841805,-500.0,0.00030999,2]
[312961854,1706545841815,-500.0,0.00030999,2]
[312961855,1706545841824,-500.0,0.00030999,2]
[312961856,1706545841833,-3807.82249144,0.00031,2]
[312961857,1706545841866,-431.95013453,0.00031,2]
[312961858,1706545841902,-150.0,0.00029776,2]
[312961859,1706545841910,-144.08548322,0.00029898,2]
[312961860,1706545841921,-5.91451678,0.00029898,2]
[312961861,1706545841931,-150.0,0.00029958,2]
[312961862,1706545841940,-583.39362448,0.00031,2]
[312961863,1706545842627,-150.0,0.00029734,2]
[312961864,1706545842637,-150.0,0.00029748,2]
[312961865,1706545842646,-150.0,0.00029758,2]
[312961866,1706545842655,-150.0,0.00029767,2]
[312961867,1706545842665,-150.0,0.00029775,2]
[312961868,1706545842674,-150.0,0.00029779,2]
[312961869,1706545842684,-150.0,0.00029788,2]
[312961870,1706545842693,-150.0,0.00029788,2]
[312961871,1706545842703,-150.0,0.00029808,2]
[312961872,1706545842712,-150.0,0.0002981,2]
[312961873,1706545842722,-150.0,0.00029819,2]
[312961874,1706545842731,-150.0,0.00029822,2]
[312961875,1706545842740,-150.0,0.00029827,2]
[312961876,1706545842749,-150.0,0.00029846,2]
[312961877,1706545842759,-150.0,0.00029849,2]
[312961878,1706545842769,-150.0,0.00029859,2]
[312961879,1706545842778,-150.0,0.00029868,2]
[312961880,1706545842788,-150.0,0.00029927,2]
[312961881,1706545842796,-150.0,0.00029931,2]
[312961882,1706545842806,-150.0,0.00029952,2]
[312961883,1706545842815,-150.0,0.00029957,2]
[312961884,1706545842825,-7605.0,0.00031,2]
[312961885,1706545842836,-1000.0,0.00031,2]
[312961927,1706545843495,-1257.5902,0.0002488,2]
[312961928,1706545843506,-1000.0,0.000305,2]
[312961930,1706545843515,-22663.97942948,0.00031,2]
[312961932,1706545843530,-909.07000001,0.00031,2]
[312961937,1706545843563,-12998.78432006,0.00031,2]
[312961939,1706545843572,-700.0,0.00031,3]
[312961940,1706545843581,-154.85,0.0003105,2]
[312961943,1706545843591,-577.57,0.00031146,2]
[312961944,1706545843602,-150.25,0.00031146,2]
[312961946,1706545843611,-165.82,0.00031146,2]
[312961948,1706545843620,-205.0,0.00031248,14]
[312961950,1706545843630,-2618.49925704,0.00031309,2]
[312961951,1706545843639,-577.57,0.00031435,2]
[312961952,1706545843648,-150.25,0.00031435,2]
[312961954,1706545843657,-165.82,0.00031435,2]
[312961957,1706545843666,-359.32109834,0.0003145,2]
[312961960,1706545843675,-157.35,0.00031507,2]
[312961964,1706545843684,-185.2,0.00031644,2]
[312961966,1706545843694,-180.0,0.00031644,2]
[312961968,1706545843703,-2000.0,0.000317,4]
[312961969,1706545843712,-3188.39941857,0.000317,2]
[312961970,1706545843721,-577.57,0.00031723,2]
[312961971,1706545843731,-150.25,0.00031723,2]
[312961972,1706545843740,-165.82,0.00031723,2]
[312961973,1706545843750,-1905.67,0.00031767,2]
[312961974,1706545843759,-2490.07054709,0.00031797,2]
[312961975,1706545843768,-233066.69758861,0.000318,3]
[312961978,1706545843987,-892.45022687,0.000318,3]
[312961979,1706545843999,-17211.93749484,0.000318,3]
[312961980,1706545844028,-1686.79356368,0.000318,3]
[312961981,1706545844038,-195.10400093,0.000319,2]
[312961982,1706545844049,-269.05123539,0.00031988,2]
[312961983,1706545844061,-664.77603329,0.00031988,2]
[312961984,1706545844080,-169.90273132,0.00031988,2]
[312961985,1706545844089,-725.77548958,0.00032,2]
[312961986,1706545844119,-858.21016671,0.00032,2]
[312961987,1706545844131,-42922.0,0.00032,2]
[312961988,1706545844142,-5494.01434371,0.00032,2]
[312961989,1706545844152,-156.12671255,0.00032,2]
[312961990,1706545844163,-628.18725326,0.00032,2]
[312962000,1706545848098,-150.0,0.0002173,2]
[312962001,1706545848108,-150.0,0.00021878,2]
[312962002,1706545848117,-150.0,0.00021888,2]
[312962003,1706545848127,-150.0,0.00024802,2]
[312962004,1706545848313,-150.0,0.00024818,2]
[312962005,1706545848324,-150.0,0.00024825,2]
[312962006,1706545848336,-71.13755376,0.00024858,2]
[312962007,1706545848440,-150.0,0.00024648,2]
[312962008,1706545848450,-150.0,0.00024727,2]
[312962010,1706545848459,-150.0,0.00024769,2]
[312962011,1706545848468,-150.0,0.00024817,2]
[312962012,1706545848478,-78.86244624,0.00024858,2]
[312962013,1706545848487,-150.0,0.00024868,2]
[312962014,1706545848497,-2102.12831377,0.00024878,2]
[312962015,1706545848507,-150.0,0.0003145,7]
[312962016,1706545848517,-2620.41260388,0.00032,2]
[312962019,1706545848527,-150.0,0.00032,2]
[312962021,1706545848537,-577.57,0.00032011,2]
[312962022,1706545848547,-150.25,0.00032011,2]
[312962023,1706545848558,-165.82,0.00032011,2]
[312962024,1706545848568,-3000.0,0.0003205,2]
[312962025,1706545848577,-203.920166,0.00032075,3]
[312962026,1706545848587,-173.45541604,0.0003217,2]
[312962027,1706545848598,-157.35,0.00032192,2]
[312962028,1706545848607,-544.35,0.00032245,2]
[312962029,1706545848616,-577.57,0.000323,2]
[312962030,1706545848626,-150.25,0.000323,2]
[312962031,1706545848635,-165.82,0.000323,2]
[312962032,1706545848648,-773.95,0.00032386,2]
[312962033,1706545848658,-151.0,0.00032405,120]
[312962034,1706545848668,-202.24958339,0.000325,2]
[312962035,1706545848678,-577.57,0.00032588,2]
[312962036,1706545848687,-150.25,0.00032588,2]
[312962037,1706545848697,-165.82,0.00032588,2]
[312962038,1706545848706,-150.1,0.000327,2]
[312962039,1706545848715,-2618.49925704,0.00032718,4]
[312962040,1706545848725,-577.57,0.00032877,2]
[312962041,1706545848734,-150.25,0.00032877,2]
[312962042,1706545848744,-165.82,0.00032877,2]
[312962043,1706545848753,-167.04,0.00032877,2]
[312962044,1706545848762,-157.35,0.00032877,2]
[312962045,1706545848772,-500.0,0.00032877,2]
[312962046,1706545848782,-154.85,0.00032877,2]
[312962047,1706545848791,-154.54917109,0.000329,2]
[312962048,1706545848800,-50000.0,0.00033,3]
[312962049,1706545848810,-1000.0,0.00033,3]
[312962050,1706545848819,-750.0,0.00033,3]
[312962051,1706545848829,-1020.0,0.00033,3]
[312962052,1706545848839,-622.0,0.00033,3]
[312962053,1706545848849,-151.0,0.00033066,30]
[312962054,1706545848859,-1000.0,0.000331,7]
[312962055,1706545848869,-200.0,0.00033232,5]
[312962056,1706545848879,-800.0,0.00033232,5]
[312962057,1706545848888,-3000.0,0.000333,2]
[312962058,1706545848897,-205.0,0.00033302,18]
[312962059,1706545848907,-960.0,0.00033373,2]
[312962060,1706545848916,-158.22521545,0.000334,4]
[312962061,1706545848925,-157.35,0.00033562,2]
[312962062,1706545848934,-1297.06292967,0.00033729,6]
[312962063,1706545848944,-151.0,0.00033741,7]
[312962064,1706545848954,-1000.0,0.00033857,2]
[312962065,1706545848963,-1000.0,0.000339,7]
[312962066,1706545848972,-50000.0,0.00034,4]
[312962067,1706545848981,-489.8044188,0.00034,4]
[312962068,1706545848990,-507.58811626,0.00034,4]
[312962069,1706545849000,-155.44848094,0.00034,4]
[312962070,1706545849009,-170.0127645,0.00034,2]
[312962071,1706545849018,-300.0,0.00034,5]
[312962072,1706545849028,-2618.49925704,0.00034127,6]
[312962073,1706545849038,-157.35,0.00034247,2]
[312962074,1706545849047,-169.0,0.00034259,2]
[312962075,1706545849057,-503.95,0.00034384,2]
[312962076,1706545849066,-151.0,0.00034429,4]
[312962077,1706545849075,-544.35,0.00034509,2]
[312962078,1706545849084,-309.00746244,0.00034548,5]
[312962079,1706545849095,-3000.0,0.0003455,2]
[312962080,1706545849104,-3994.32,0.00034649,2]
[312962081,1706545849113,-1292.08,0.00034649,30]
[312962082,1706545849122,-150.1,0.000347,3]
[312962083,1706545849131,-1941.0,0.000348,7]
[312962084,1706545849141,-8983.97726548,0.000349,4]
[312962085,1706545849151,-703.03046835,0.000349,2]
[312962086,1706545849161,-703.0304683,0.000349,2]
[312962087,1706545849171,-703.0304683,0.000349,2]
[312962088,1706545849182,-703.0304683,0.000349,2]
[312962089,1706545849192,-703.0304683,0.000349,2]
[312962090,1706545849202,-157.35,0.00034932,2]
[312962091,1706545849212,-50000.0,0.00035,5]
[312962092,1706545849223,-155.0,0.00035,2]
[312962093,1706545849233,-15786.74133144,0.00035,7]
[312962094,1706545849244,-1263.77896347,0.00035,4]
[312962095,1706545849253,-5000.0,0.00035,7]
[312962096,1706545849263,-5399.11126465,0.00035,4]
[312962097,1706545849276,-155.0,0.00035,2]
[312962098,1706545849285,-449.39237637,0.00035,4]
[312962099,1706545849295,-186.30360018,0.00035,4]
[312962100,1706545849304,-1000.0,0.00035,5]
[312962101,1706545849314,-800.0,0.00035,3]
[312962102,1706545849323,-521.430245,0.00035,7]
[312962103,1706545849337,-3000.0,0.00035,11]
[312962104,1706545849349,-170.3555356,0.00035,2]
[312962105,1706545849358,-283.3396464,0.00035,2]
[312962106,1706545849369,-12888.07046248,0.00035,2]
[312962107,1706545849378,-875.64975705,0.00035,2]
[312962108,1706545849388,-875.64975705,0.00035,2]
[312962109,1706545849398,-875.64975705,0.00035,2]
[312962110,1706545849408,-875.64975705,0.00035,2]
[312962111,1706545849417,-875.64975705,0.00035,2]
[312962112,1706545849427,-3000.0,0.0003501,11]
[312962113,1706545849437,-5518.456778,0.0003502,11]
[312962114,1706545849446,-151.0,0.00035132,2]
[312962115,1706545849456,-205.0,0.00035356,21]
[312962116,1706545849466,-153.56755624,0.00035399,2]
[312962117,1706545849476,-1808.25,0.00035402,5]
[312962118,1706545849485,-154.22,0.000355,3]
[312962119,1706545849495,-154.22,0.000355,3]
[312962120,1706545849505,-154.22,0.000355,3]
[312962121,1706545849515,-154.22,0.000355,3]
[312962122,1706545849525,-2087.26,0.000355,3]
[312962123,1706545849534,-2087.26,0.000355,3]
[312962124,1706545849543,-2087.26,0.000355,3]
[312962125,1706545849552,-2087.26,0.000355,3]
[312962126,1706545849562,-1340.08207196,0.000355,3]
[312962127,1706545850292,-747.17792804,0.000355,3]
[312962128,1706545850302,-2087.26,0.000355,3]
[312962129,1706545850314,-2087.26,0.000355,3]
[312962130,1706545850324,-1288.51139936,0.000355,3]
[312962131,1706545850363,-798.74860064,0.000355,3]
[312962132,1706545850373,-535.35769824,0.000355,3]
[312962133,1706545850599,-150.0,0.00024612,2]
[312962134,1706545850610,-150.0,0.00024649,2]
[312962135,1706545850620,-1551.90230176,0.000355,3]
[312962136,1706545850630,-2087.26,0.000355,3]
[312962137,1706545850641,-2087.26,0.000355,3]
[312962138,1706545850651,-2087.26,0.000355,3]
[312962139,1706545850662,-2087.26,0.000355,3]
[312962140,1706545850673,-2087.26,0.000355,3]
[312962141,1706545850683,-2087.26,0.000355,3]
[312962142,1706545850693,-2087.26,0.000355,3]
[312962143,1706545850704,-2087.26,0.000355,3]
[312962144,1706545850714,-2087.26,0.000355,3]
[312962145,1706545850724,-2087.26,0.000355,3]
[312962146,1706545850734,-2087.26,0.000355,3]
[312962147,1706545850744,-497.38527222,0.00035536,8]
[312962148,1706545850756,-2121.11398482,0.00035536,8]
[312962149,1706545850765,-703.0304683,0.00035598,2]
[312962150,1706545850775,-150.0,0.00035616,2]
[312962151,1706545850785,-157.35,0.00035616,2]
[312962152,1706545850794,-1277.64,0.00035616,2]
[312962153,1706545850804,-3000.0,0.000358,2]
[312962154,1706545850814,-150.0,0.00035986,2]
[312962155,1706545850823,-7873.04172712,0.00036,6]
[312962156,1706545850871,-150.0,0.00024648,2]
[312962157,1706545850881,-150.0,0.00024747,2]
[312962158,1706545850892,-163.37189015,0.00024785,2]
[312962159,1706545850903,-3814.82810985,0.00036,6]
[312962160,1706545850916,-38312.13016303,0.00036,6]
[312962161,1706545850926,-298.27718725,0.00036,4]
[312962162,1706545850937,-1598.49,0.00036,7]
[312962163,1706545850947,-1595.88,0.00036,7]
[312962164,1706545850957,-5132.73,0.00036,7]
[312962165,1706545850966,-150.0,0.00036029,2]
[312962166,1706545850975,-150.0,0.00036079,2]
[312962167,1706545850984,-150.0,0.00036084,2]
[312962168,1706545850994,-1500.0,0.00036098,2]
[312962169,1706545851004,-1500.0,0.00036132,2]
[312962170,1706545851014,-150.0,0.0003616,2]
[312962171,1706545851024,-150.0,0.00036174,2]
[312962172,1706545851036,-317.0,0.0003619,5]
[312962173,1706545851047,-701.90600985,0.00036191,4]
[312962174,1706545851057,-150.0,0.00036199,2]
[312962175,1706545851067,-150.0,0.00036208,2]
[312962176,1706545851077,-150.0,0.00036213,2]
[312962177,1706545851087,-150.0,0.00036226,2]
[312962178,1706545851099,-150.0,0.0003623,2]
[312962179,1706545851109,-150.0,0.00036241,2]
[312962180,1706545851118,-150.0,0.00036249,2]
[312962181,1706545851127,-155.0,0.00036258,7]
[312962182,1706545851136,-1601.34009333,0.0003626,3]
[312962183,1706545851145,-150.0,0.00036273,2]
[312962184,1706545851154,-150.0,0.00036274,2]
[312962185,1706545851164,-150.0,0.00036291,2]
[312962186,1706545851173,-157.35,0.00036301,2]
[312962187,1706545851183,-921.12421722,0.00036301,30]
[312962191,1706546164134,205.0,0.00022033,2]
[312962192,1706546226390,235.37393543,0.00022033,2]
[312962194,1706546228338,155.0,0.00022033,2]
[312962195,1706546244205,155.0,0.00022033,2]
[312962196,1706546246388,235.37393543,0.00022033,2]
[312962197,1706546264224,220.09282609,0.00022033,2]
[312962198,1706546266378,233.48281082,0.00022033,2]
[312962202,1706546407395,155.0,0.00022033,2]
[312962203,1706546413002,155.0,0.00022033,2]
[312962206,1706546419325,4650.67649223,0.00022033,2]
[312962235,1706546792756,-677.3483605,0.00022021,2]
[312962236,1706546792776,-517.85038684,0.00022022,2]
[312962237,1706546792798,-551.65565275,0.00022033,2]
[312962238,1706546792818,-4253.14559991,0.00022033,2]
[312962291,1706547034446,-1842.07105416,0.00022033,2]
[312962292,1706547034456,-990.60070442,0.00022033,2]
[312962293,1706547034465,-1300.87612698,0.00022033,2]
[312962294,1706547034477,-3901.456018,0.00022033,2]
[312962295,1706547034486,-162.34773778,0.00022645,2]
[312962296,1706547034496,-205.0,0.00022745,2]
[312962297,1706547034505,-677.3483605,0.00023399,2]
[312962298,1706547034515,-2130.72009571,0.000234,2]
[312962299,1706547034526,-543.29728188,0.000234,2]
[312962300,1706547034542,-415.98262241,0.000234,2]
[312962301,1706547034552,-268.73646025,0.0002488,2]
[312962302,1706547034580,-267.23297842,0.0002488,2]
[312962318,1706547034983,-1402.25005701,0.0002488,2]
[312962321,1706547034995,-764.36761815,0.0002488,2]
[312962323,1706547035008,-482.94118617,0.0002488,2]
[312962324,1706547035018,-512.52,0.00024969,2]
[312962325,1706547035028,-3011.67714353,0.00025,2]
[312962326,1706547035042,-550.0,0.00025,3]
[312962327,1706547035054,-150.85586616,0.00025407,2]
[312962328,1706547035065,-205.0,0.00025611,6]
[312962329,1706547035075,-159.43,0.00026,2]
[312962330,1706547035086,-1457.2267908,0.00026397,2]
[312962331,1706547035097,-433.37575359,0.00026405,2]
[312962332,1706547035107,-364.676,0.00026407,2]
[312962333,1706547035118,-368.0,0.00026407,2]
[312962334,1706547035128,-837.0,0.00026407,2]
[312962335,1706547035139,-481.55,0.00026407,2]
[312962336,1706547035149,-905.515,0.00026407,2]
[312962337,1706547035160,-184.584,0.00026407,2]
[312962338,1706547035170,-215.0,0.00026407,2]
[312962339,1706547035181,-1232.0,0.00026407,2]
[312962340,1706547035192,-1252.0,0.00026407,2]
[312962341,1706547035203,-499.673,0.00026407,2]
[312962342,1706547035212,-427.0,0.00026407,2]
[312962343,1706547035226,-999.0,0.00026407,2]
[312962344,1706547035237,-253.668,0.00026407,2]
[312962345,1706547035247,-866.0,0.00026407,2]
[312962346,1706547035257,-319.0,0.00026407,2]
[312962347,1706547035268,-1138.0,0.00026407,2]
[312962348,1706547035278,-252.942,0.00026407,2]
[312962349,1706547035291,-803.44608337,0.00026407,2]
[312962350,1706547035304,-1262.89118739,0.00026407,2]
[312962351,1706547035316,-272.46365372,0.00026407,2]
[312962352,1706547035336,-1613.60107552,0.00026407,2]
[312962353,1706547035346,-658.212,0.00026407,2]
[312962354,1706547035356,-2278.0,0.00026407,2]
[312962355,1706547035366,-833.393,0.00026407,2]
[312962356,1706547035375,-16066.79392448,0.00026407,2]
[312962357,1706547035415,-2952.02338367,0.00026407,2]
[312962358,1706547035427,-628.42,0.00026407,2]
[312962359,1706547035438,-61.76269185,0.00026407,2]
[312962360,1706547035448,-150.0,0.00026407,2]
[312962361,1706547035457,-200.0,0.00026407,2]
[312962362,1706547035467,-1031.0,0.00026407,2]
[312962363,1706547035477,-150.0,0.00026407,2]
[312962364,1706547035487,-150.293,0.00026407,2]
[312962365,1706547035496,-150.0,0.00026407,2]
[312962366,1706547035505,-2427.54430815,0.00026724,2]
[312962367,1706547035518,-320.6391067,0.00026724,2]
[312962368,1706547035530,-9551.99999862,0.00026724,2]
[312962369,1706547035553,-1974.8225,0.00026724,2]
[312962370,1706547035566,-1409.78153758,0.00026724,2]
[312962400,1706547037471,-8215.21254895,0.00026724,2]
[312962401,1706547037481,-500.0,0.00026737,2]
[312962402,1706547037491,-851.76,0.00026805,2]
[312962403,1706547037500,-1000.0,0.00026819,2]
[312962404,1706547037510,-5268.82,0.00026852,2]
[312962405,1706547037520,-150.0,0.00026859,2]
[312962406,1706547037534,-459.88,0.00026917,2]
[312962407,1706547037545,-250.0,0.00026939,2]
[312962408,1706547037555,-154.91,0.0002697,2]
[312962409,1706547037564,-1941.01681541,0.00026975,2]
[312962410,1706547037578,-58.98318459,0.00026975,2]
[312962411,1706547037588,-600.0,0.00027,3]
[312962412,1706547037598,-250.0,0.0002701,2]
[312962413,1706547037608,-250.0,0.00027052,2]
[312962414,1706547037618,-273.78,0.00027085,2]
[312962415,1706547037627,-512.52,0.00027232,2]
[312962416,1706547037637,-960.17056376,0.00027397,2]
[312962417,1706547037655,-4758.74190659,0.00027397,2]
[312962418,1706547037671,-568.44121202,0.00027397,2]
[312962419,1706547037688,-844.29631763,0.00027397,2]
[312962420,1706547037699,-499.00035808,0.00027397,2]
[312962421,1706547037719,-30.99964192,0.00027397,2]
[312962422,1706547037729,-197.65,0.00027671,2]
[312962423,1706547037739,-200.0,0.00028,2]
[312962424,1706547037749,-120.95035708,0.00028477,10]
[312962425,1706547037805,-84.04964292,0.00028477,10]
[312962426,1706547037814,-459.88,0.00028561,2]
[312962427,1706547037824,-168.23,0.00028953,2]
[312962428,1706547037834,-327.38087984,0.00029,6]
[312962430,1706547037845,-650.0,0.00029,3]
[312962431,1706547037855,-150.0,0.00029407,2]
[312962432,1706547037864,-150.0,0.00029407,2]
[312962433,1706547037879,-512.52,0.00029496,2]
[312962434,1706547037890,-197.65,0.00029719,2]
[312962435,1706547037899,-1079.5390038,0.000299,2]
[312962436,1706547037911,-3704.77177377,0.000299,2]
[312962440,1706547040013,-24287.71224055,0.000299,2]
[312962441,1706547040025,-14497.97146087,0.000299,2]
[312962449,1706547042193,-634.66,0.000299,2]
[312962466,1706547042258,-2440.917,0.000299,2]
[312962468,1706547042295,-664.630969,0.000299,2]
[312962475,1706547042427,-771.45514807,0.000299,2]
[312962476,1706547042439,-1772.05789935,0.000299,2]
[312962477,1706547042487,-378.75797026,0.000299,2]
[312962478,1706547042499,-30812.06935227,0.000299,2]
[312962479,1706547042549,-369.894879,0.000299,2]
[312962480,1706547042560,-450.0,0.000299,2]
[312962481,1706547042609,-433.38490306,0.000299,2]
[312962482,1706547042620,-308.5255683,0.000299,2]
[312962483,1706547042632,-226.84127784,0.000299,2]
[312962484,1706547042641,-155.0,0.0003,2]